[Event "*** Titled Tuesday Blitz"]
[Site "Chess.com"]
[Date "2021.03.02"]
[Round "11"]
[White "Zemerovv"]
[Black "KruHor"]
[Result "1-0"]
[WhiteElo "2337"]
[BlackElo "2538"]
[TimeControl "180+1"]
[EndTime "12:09:56 PST"]
[Termination "Zemerovv won by resignation"]

1. d4 {[%clk 0:02:59.2]} 1... Nf6 {[%clk 0:02:58.7]} 2. Nf3 {[%clk 0:02:59.1]}
2... d5 {[%clk 0:02:58]} 3. Nbd2 {[%clk 0:02:58.8]} 3... Bf5 {[%clk 0:02:54.3]}
4. b4 {[%clk 0:02:57.3]} 4... e5 {[%clk 0:02:45.9]} 5. dxe5 {[%clk 0:02:51.8]}
5... Ne4 {[%clk 0:02:44.9]} 6. Nxe4 {[%clk 0:02:51.2]} 6... dxe4 {[%clk
0:02:43.8]} 7. Qxd8+ {[%clk 0:02:42.5]} 7... Kxd8 {[%clk 0:02:43.1]} 8. Bg5+
{[%clk 0:02:41.6]} 8... Kc8 {[%clk 0:02:23.2]} 9. O-O-O {[%clk 0:02:39]} 9...
Bxb4 {[%clk 0:02:22]} 10. Nd4 {[%clk 0:02:38]} 10... Bd7 {[%clk 0:02:14.3]} 11.
Kb2 {[%clk 0:02:25.7]} 11... Re8 {[%clk 0:02:13.3]} 12. f4 {[%clk 0:02:23.7]}
12... exf3 {[%clk 0:01:55.5]} 13. Nxf3 {[%clk 0:02:11.7]} 13... Nc6 {[%clk
0:01:53.2]} 14. Bf4 {[%clk 0:02:09.8]} 14... Bg4 {[%clk 0:01:45.4]} 15. c3
{[%clk 0:02:06.1]} 15... Bc5 {[%clk 0:01:40.9]} 16. e3 {[%clk 0:02:06]} 16... a6
{[%clk 0:01:16.6]} 17. Rd5 {[%clk 0:02:01.6]} 17... b6 {[%clk 0:01:12.5]} 18.
Bd3 {[%clk 0:01:52.6]} 18... h6 {[%clk 0:01:10.9]} 19. Be4 {[%clk 0:01:45.6]}
19... Rb8 {[%clk 0:01:00.4]} 20. Kc2 {[%clk 0:01:40.4]} 20... Ne7 {[%clk
0:00:54.4]} 21. Rd3 {[%clk 0:01:29.6]} 21... g5 {[%clk 0:00:52.5]} 22. Bg3
{[%clk 0:01:28.5]} 22... Bf5 {[%clk 0:00:51.5]} 23. Bxf5+ {[%clk 0:01:19.6]}
23... Nxf5 {[%clk 0:00:50.7]} 24. e4 {[%clk 0:01:13.1]} 24... Nxg3 {[%clk
0:00:39.4]} 25. hxg3 {[%clk 0:01:11.8]} 25... g4 {[%clk 0:00:39.3]} 26. Nd4
{[%clk 0:01:04.9]} 26... Kb7 {[%clk 0:00:39.5]} 27. Rxh6 {[%clk 0:01:02.9]}
27... Rh8 {[%clk 0:00:36.2]} 28. Rf6 {[%clk 0:00:58.8]} 28... Rbe8 {[%clk
0:00:33.1]} 29. e6 {[%clk 0:00:53.1]} 29... Bxd4 {[%clk 0:00:31.2]} 30. exf7
{[%clk 0:00:50.1]} 30... Bxf6 {[%clk 0:00:29.9]} 31. fxe8=Q {[%clk 0:00:46.6]}
31... Rxe8 {[%clk 0:00:29.5]} 32. Re3 {[%clk 0:00:44.7]} 32... Be5 {[%clk
0:00:28.4]} 33. Kd3 {[%clk 0:00:43]} 33... Rf8 {[%clk 0:00:26.9]} 34. Ke2 {[%clk
0:00:42.1]} 34... Kc6 {[%clk 0:00:26.8]} 35. Rd3 {[%clk 0:00:41.8]} 35... Kc5
{[%clk 0:00:26.5]} 36. Rd5+ {[%clk 0:00:41.5]} 36... Kc4 {[%clk 0:00:26.2]} 37.
Rxe5 {[%clk 0:00:42.4]} 37... Kxc3 {[%clk 0:00:25.5]} 38. Re7 {[%clk 0:00:40.8]}
38... c5 {[%clk 0:00:25.2]} 39. Ke3 {[%clk 0:00:40.3]} 39... Rd8 {[%clk
0:00:23.5]} 40. e5 {[%clk 0:00:39.9]} 40... c4 {[%clk 0:00:22.4]} 41. e6 {[%clk
0:00:39.2]} 41... b5 {[%clk 0:00:20.6]} 42. Rc7 {[%clk 0:00:37.3]} 42... Rd6
{[%clk 0:00:19.9]} 43. e7 {[%clk 0:00:36.3]} 43... Re6+ {[%clk 0:00:19.7]} 44.
Kf4 {[%clk 0:00:37.2]} 44... Kb2 {[%clk 0:00:17.8]} 45. Kxg4 {[%clk 0:00:36.7]}
45... c3 {[%clk 0:00:17.4]} 46. Kf5 {[%clk 0:00:36.3]} 46... Re2 {[%clk
0:00:15.5]} 47. g4 {[%clk 0:00:32.9]} 47... c2 {[%clk 0:00:14.8]} 48. Kf6 {[%clk
0:00:32.4]} 48... b4 {[%clk 0:00:14.2]} 49. g5 {[%clk 0:00:31.1]} 49... a5
{[%clk 0:00:12.5]} 50. g6 {[%clk 0:00:30.8]} 50... Rf2+ {[%clk 0:00:11.8]} 51.
Ke6 {[%clk 0:00:28.8]} 51... c1=Q {[%clk 0:00:09.3]} 52. Rxc1 {[%clk 0:00:26.9]}
52... Kxc1 {[%clk 0:00:09.1]} 53. g7 {[%clk 0:00:26.7]} 53... Rxg2 {[%clk
0:00:08.9]} 54. e8=Q {[%clk 0:00:22.1]} 54... Re2+ {[%clk 0:00:08.4]} 55. Kf7
{[%clk 0:00:21.2]} 55... Rxe8 {[%clk 0:00:07.8]} 56. Kxe8 {[%clk 0:00:20.8]} 1-0

[Event "*** Titled Tuesday Blitz"]
[Site "Chess.com"]
[Date "2021.03.02"]
[Round "11"]
[White "arminmusovic"]
[Black "Forantes"]
[Result "0-1"]
[WhiteElo "2523"]
[BlackElo "2441"]
[TimeControl "180+1"]
[EndTime "12:09:58 PST"]
[Termination "Forantes won by checkmate"]

1. a3 {[%clk 0:03:00.9]} 1... e5 {[%clk 0:02:58.6]} 2. Nc3 {[%clk 0:03:01.8]}
2... Nf6 {[%clk 0:02:58.5]} 3. d4 {[%clk 0:03:01.8]} 3... exd4 {[%clk
0:02:58.6]} 4. Qxd4 {[%clk 0:03:02.7]} 4... Nc6 {[%clk 0:02:59.2]} 5. Qa4 {[%clk
0:03:02.4]} 5... Bc5 {[%clk 0:02:58.4]} 6. Bg5 {[%clk 0:03:00.3]} 6... h6 {[%clk
0:02:52.6]} 7. Bh4 {[%clk 0:02:57.6]} 7... Be7 {[%clk 0:02:42.3]} 8. O-O-O
{[%clk 0:02:55.6]} 8... d6 {[%clk 0:02:42.6]} 9. e4 {[%clk 0:02:54.1]} 9... Bd7
{[%clk 0:02:41.2]} 10. f4 {[%clk 0:02:54.3]} 10... Ng4 {[%clk 0:02:23.7]} 11.
Bxe7 {[%clk 0:02:54.1]} 11... Qxe7 {[%clk 0:02:23.9]} 12. Nd5 {[%clk 0:02:53.8]}
12... Qd8 {[%clk 0:02:24.4]} 13. Nh3 {[%clk 0:02:53.5]} 13... O-O {[%clk
0:02:20.1]} 14. Bd3 {[%clk 0:02:36]} 14... a6 {[%clk 0:02:08.5]} 15. Qb3 {[%clk
0:02:01.6]} 15... Nd4 {[%clk 0:01:19]} 16. Qxb7 {[%clk 0:01:49.3]} 16... c6
{[%clk 0:01:18.1]} 17. Nb6 {[%clk 0:01:44.9]} 17... Rb8 {[%clk 0:01:18]} 18.
Qxd7 {[%clk 0:01:44.6]} 18... Qxb6 {[%clk 0:01:18]} 19. Qxg4 {[%clk 0:01:37.3]}
19... Qxb2+ {[%clk 0:01:10.3]} 20. Kd2 {[%clk 0:01:37]} 20... Rb3 {[%clk
0:00:56.6]} 21. Ke1 {[%clk 0:00:46]} 21... Rxd3 {[%clk 0:00:18.2]} 22. cxd3
{[%clk 0:00:38.1]} 22... Nc2+ {[%clk 0:00:16.7]} 23. Kf2 {[%clk 0:00:35.2]}
23... Qd4+ {[%clk 0:00:15]} 24. Kg3 {[%clk 0:00:34.8]} 24... Ne3 {[%clk
0:00:13.7]} 25. Qf3 {[%clk 0:00:35]} 25... f5 {[%clk 0:00:11.2]} 26. Rhe1 {[%clk
0:00:32.6]} 26... Nxd1 {[%clk 0:00:07.3]} 27. Rxd1 {[%clk 0:00:31.2]} 27... Rf6
{[%clk 0:00:07.9]} 28. exf5 {[%clk 0:00:20.7]} 28... Rxf5 {[%clk 0:00:02.8]} 29.
Qe4 {[%clk 0:00:20.5]} 29... Qf6 {[%clk 0:00:01.8]} 30. Rb1 {[%clk 0:00:20.2]}
30... Qg6+ {[%clk 0:00:01.6]} 31. Kf2 {[%clk 0:00:19.5]} 31... Kh7 {[%clk
0:00:02.2]} 32. Rb7 {[%clk 0:00:18.4]} 32... d5 {[%clk 0:00:02.7]} 33. Qf3
{[%clk 0:00:16.6]} 33... Rf6 {[%clk 0:00:01.8]} 34. g3 {[%clk 0:00:16.4]} 34...
c5 {[%clk 0:00:01.6]} 35. Kg2 {[%clk 0:00:15.8]} 35... c4 {[%clk 0:00:02.1]} 36.
Qxd5 {[%clk 0:00:14.6]} 36... cxd3 {[%clk 0:00:02.2]} 37. Rd7 {[%clk 0:00:14]}
37... d2 {[%clk 0:00:01.8]} 38. Qxd2 {[%clk 0:00:14.1]} 38... Qe4+ {[%clk
0:00:02.5]} 39. Kg1 {[%clk 0:00:13.5]} 39... Rc6 {[%clk 0:00:03.1]} 40. Qd3
{[%clk 0:00:12]} 40... Rc1+ {[%clk 0:00:03.7]} 41. Kf2 {[%clk 0:00:12]} 41...
Rc2+ {[%clk 0:00:04.4]} 42. Qxc2 {[%clk 0:00:09.7]} 42... Qxc2+ {[%clk
0:00:04.1]} 43. Kf3 {[%clk 0:00:10.6]} 43... Qc6+ {[%clk 0:00:04.4]} 44. Kf2
{[%clk 0:00:10.7]} 44... Qxd7 {[%clk 0:00:05.3]} 45. Ng1 {[%clk 0:00:11.6]}
45... Qd2+ {[%clk 0:00:05.5]} 46. Kf1 {[%clk 0:00:11.3]} 46... Qc3 {[%clk
0:00:05.4]} 47. Ne2 {[%clk 0:00:12.2]} 47... Qxa3 {[%clk 0:00:06]} 48. Kf2
{[%clk 0:00:13.1]} 48... Qc5+ {[%clk 0:00:06.7]} 49. Kf3 {[%clk 0:00:13.4]}
49... a5 {[%clk 0:00:07.4]} 50. f5 {[%clk 0:00:13.7]} 50... a4 {[%clk 0:00:08]}
51. g4 {[%clk 0:00:14.6]} 51... a3 {[%clk 0:00:08.1]} 52. Ng3 {[%clk 0:00:14.3]}
52... a2 {[%clk 0:00:08.6]} 53. Ne4 {[%clk 0:00:15.2]} 53... Qd5 {[%clk
0:00:07.8]} 54. Kf4 {[%clk 0:00:15]} 54... a1=Q {[%clk 0:00:07.4]} 55. Ng3
{[%clk 0:00:14.6]} 55... Qae5# {[%clk 0:00:05.8]} 0-1

[Event "*** Titled Tuesday Blitz"]
[Site "Chess.com"]
[Date "2021.03.02"]
[Round "11"]
[White "Problematique_99"]
[Black "Sjakkerntobi"]
[Result "1-0"]
[WhiteElo "2458"]
[BlackElo "2343"]
[TimeControl "180+1"]
[EndTime "12:09:59 PST"]
[Termination "Problematique_99 won by checkmate"]

1. e4 {[%clk 0:03:00.9]} 1... c5 {[%clk 0:02:57.9]} 2. Nc3 {[%clk 0:03:00.4]}
2... d6 {[%clk 0:02:55.2]} 3. f4 {[%clk 0:02:59.4]} 3... g6 {[%clk 0:02:55.3]}
4. Nf3 {[%clk 0:02:59.4]} 4... Bg7 {[%clk 0:02:55.4]} 5. Bb5+ {[%clk 0:02:59.6]}
5... Bd7 {[%clk 0:02:54.7]} 6. a4 {[%clk 0:02:56.9]} 6... Bxb5 {[%clk
0:02:52.7]} 7. axb5 {[%clk 0:02:56.5]} 7... Nf6 {[%clk 0:02:52]} 8. d3 {[%clk
0:02:55.1]} 8... O-O {[%clk 0:02:51.6]} 9. O-O {[%clk 0:02:55.2]} 9... a6 {[%clk
0:02:51.6]} 10. Qe1 {[%clk 0:02:51]} 10... Nbd7 {[%clk 0:02:51.1]} 11. bxa6
{[%clk 0:02:51.2]} 11... Rxa6 {[%clk 0:02:52]} 12. Rxa6 {[%clk 0:02:49.9]} 12...
bxa6 {[%clk 0:02:52.9]} 13. Qh4 {[%clk 0:02:49]} 13... e6 {[%clk 0:02:47.8]} 14.
f5 {[%clk 0:02:39.3]} 14... Re8 {[%clk 0:02:47.6]} 15. fxe6 {[%clk 0:02:30.7]}
15... fxe6 {[%clk 0:02:43.6]} 16. Ng5 {[%clk 0:02:27.1]} 16... Ne5 {[%clk
0:02:31]} 17. Qh3 {[%clk 0:01:49.5]} 17... Qe7 {[%clk 0:02:25.8]} 18. Ne2 {[%clk
0:01:46.4]} 18... h5 {[%clk 0:02:15.4]} 19. Nf4 {[%clk 0:01:41.7]} 19... Nfg4
{[%clk 0:01:54]} 20. Nfxe6 {[%clk 0:01:30.8]} 20... Bf6 {[%clk 0:01:52.1]} 21.
Qg3 {[%clk 0:01:22.5]} 21... Nf7 {[%clk 0:01:46.4]} 22. Nxf7 {[%clk 0:01:14.8]}
22... Qxf7 {[%clk 0:01:47.3]} 23. Nf4 {[%clk 0:01:02.6]} 23... g5 {[%clk
0:01:15.2]} 24. Nd5 {[%clk 0:00:42.7]} 24... Bd4+ {[%clk 0:01:10.9]} 25. Be3
{[%clk 0:00:40.3]} 25... Nxe3 {[%clk 0:00:43.7]} 26. Nxe3 {[%clk 0:00:37.2]}
26... Qg7 {[%clk 0:00:43.2]} 27. Rf5 {[%clk 0:00:22]} 27... Re5 {[%clk
0:00:37.8]} 28. c3 {[%clk 0:00:15.8]} 28... Rxf5 {[%clk 0:00:22.8]} 29. exf5
{[%clk 0:00:16.7]} 29... Bxe3+ {[%clk 0:00:13.6]} 30. Qxe3 {[%clk 0:00:16.6]}
30... Qe5 {[%clk 0:00:14.5]} 31. Qxe5 {[%clk 0:00:06.3]} 31... dxe5 {[%clk
0:00:15.4]} 32. Kf2 {[%clk 0:00:04.8]} 32... Kg7 {[%clk 0:00:14.2]} 33. g4
{[%clk 0:00:05.1]} 33... Kf6 {[%clk 0:00:10.3]} 34. h3 {[%clk 0:00:03.4]} 34...
hxg4 {[%clk 0:00:05.4]} 35. hxg4 {[%clk 0:00:04.3]} 35... Ke7 {[%clk 0:00:05.7]}
36. Ke3 {[%clk 0:00:04.6]} 36... Kd7 {[%clk 0:00:02.9]} 37. Ke4 {[%clk
0:00:04.5]} 37... Kd6 {[%clk 0:00:03.8]} 38. c4 {[%clk 0:00:03.9]} 38... a5
{[%clk 0:00:01.4]} 39. b3 {[%clk 0:00:04.2]} 39... Kc6 {[%clk 0:00:01.9]} 40.
Kxe5 {[%clk 0:00:04.3]} 40... Kb6 {[%clk 0:00:02.3]} 41. f6 {[%clk 0:00:04.5]}
41... a4 {[%clk 0:00:02.1]} 42. bxa4 {[%clk 0:00:05.4]} 42... Ka5 {[%clk
0:00:03]} 43. f7 {[%clk 0:00:06]} 43... Kb4 {[%clk 0:00:03.5]} 44. f8=Q {[%clk
0:00:06.9]} 44... Kc3 {[%clk 0:00:04.4]} 45. Qxc5 {[%clk 0:00:07.1]} 45... Kxd3
{[%clk 0:00:05.3]} 46. Qd5+ {[%clk 0:00:07.3]} 46... Ke3 {[%clk 0:00:05.5]} 47.
c5 {[%clk 0:00:08.2]} 47... Kf2 {[%clk 0:00:05.7]} 48. c6 {[%clk 0:00:09.1]}
48... Kg3 {[%clk 0:00:06]} 49. c7 {[%clk 0:00:10]} 49... Kh3 {[%clk 0:00:06.9]}
50. c8=Q {[%clk 0:00:10.9]} 50... Kg3 {[%clk 0:00:07.5]} 51. Qc3+ {[%clk
0:00:10.3]} 51... Kh4 {[%clk 0:00:08.3]} 52. Qh1+ {[%clk 0:00:09.6]} 52... Kxg4
{[%clk 0:00:07.4]} 53. Qhh3# {[%clk 0:00:09.6]} 1-0

[Event "*** Titled Tuesday Blitz"]
[Site "Chess.com"]
[Date "2021.03.02"]
[Round "11"]
[White "Mikhail_Golubev"]
[Black "SanchezKelvin"]
[Result "1/2-1/2"]
[WhiteElo "2587"]
[BlackElo "2451"]
[TimeControl "180+1"]
[EndTime "12:10:03 PST"]
[Termination "Game drawn by repetition"]

1. e4 {[%clk 0:03:00.9]} 1... c5 {[%clk 0:02:59.5]} 2. Nf3 {[%clk 0:03:00.2]}
2... d6 {[%clk 0:02:58.7]} 3. d4 {[%clk 0:03:00.1]} 3... cxd4 {[%clk 0:02:57.8]}
4. Nxd4 {[%clk 0:03:00.7]} 4... Nf6 {[%clk 0:02:55.6]} 5. Nc3 {[%clk 0:03:01.2]}
5... g6 {[%clk 0:02:55.4]} 6. Be3 {[%clk 0:03:00.4]} 6... Bg7 {[%clk 0:02:55.9]}
7. f3 {[%clk 0:03:00.9]} 7... O-O {[%clk 0:02:56.5]} 8. Qd2 {[%clk 0:03:01]}
8... Nc6 {[%clk 0:02:57.1]} 9. O-O-O {[%clk 0:03:01]} 9... Nxd4 {[%clk
0:02:56.4]} 10. Bxd4 {[%clk 0:03:00.7]} 10... Be6 {[%clk 0:02:57.3]} 11. Kb1
{[%clk 0:03:00.6]} 11... Qc7 {[%clk 0:02:57.1]} 12. h4 {[%clk 0:03:00.6]} 12...
Rfc8 {[%clk 0:02:56.5]} 13. h5 {[%clk 0:03:00]} 13... Qa5 {[%clk 0:02:55.3]} 14.
hxg6 {[%clk 0:02:58.3]} 14... fxg6 {[%clk 0:02:53.8]} 15. a3 {[%clk 0:02:56.7]}
15... Bf7 {[%clk 0:02:53]} 16. g4 {[%clk 0:02:46.7]} 16... Rab8 {[%clk
0:02:44.5]} 17. g5 {[%clk 0:02:25.4]} 17... Nh5 {[%clk 0:02:44]} 18. Bh3 {[%clk
0:02:11.5]} 18... Bxd4 {[%clk 0:02:40.2]} 19. Qxd4 {[%clk 0:02:10.7]} 19... Rc4
{[%clk 0:02:37.7]} 20. Qe3 {[%clk 0:02:00.4]} 20... b5 {[%clk 0:02:36]} 21. Nd5
{[%clk 0:01:48.3]} 21... b4 {[%clk 0:01:53.7]} 22. a4 {[%clk 0:01:39.4]} 22...
Rc5 {[%clk 0:01:46.8]} 23. b3 {[%clk 0:01:24.1]} 23... Kf8 {[%clk 0:01:36.2]}
24. Bg4 {[%clk 0:00:54]} 24... Bxd5 {[%clk 0:00:54.5]} 25. exd5 {[%clk
0:00:53.7]} 25... Rxd5 {[%clk 0:00:53.9]} 26. Rxd5 {[%clk 0:00:25.3]} 26... Qxd5
{[%clk 0:00:52.9]} 27. Qxa7 {[%clk 0:00:23.7]} 27... Ra8 {[%clk 0:00:45.6]} 28.
Qe3 {[%clk 0:00:23.3]} 28... Qc5 {[%clk 0:00:28.3]} 29. Qxc5 {[%clk 0:00:21.9]}
29... dxc5 {[%clk 0:00:28.5]} 30. Bxh5 {[%clk 0:00:22.5]} 30... gxh5 {[%clk
0:00:28]} 31. Rxh5 {[%clk 0:00:23.1]} 31... Kg7 {[%clk 0:00:27.5]} 32. Rh6
{[%clk 0:00:23.2]} 32... Rd8 {[%clk 0:00:25.2]} 33. Re6 {[%clk 0:00:22.7]} 33...
Kf7 {[%clk 0:00:24.9]} 34. Re5 {[%clk 0:00:22.6]} 34... Rc8 {[%clk 0:00:24.4]}
35. Kb2 {[%clk 0:00:21.7]} 35... e6 {[%clk 0:00:24.3]} 36. a5 {[%clk 0:00:21.3]}
36... Ke7 {[%clk 0:00:23.7]} 37. f4 {[%clk 0:00:21]} 37... Kd6 {[%clk
0:00:23.7]} 38. Re2 {[%clk 0:00:18.9]} 38... Ra8 {[%clk 0:00:23.3]} 39. Rh2
{[%clk 0:00:18.9]} 39... Ra7 {[%clk 0:00:23.5]} 40. Rh6 {[%clk 0:00:18.7]} 40...
Kd5 {[%clk 0:00:23.7]} 41. Kc1 {[%clk 0:00:17.3]} 41... Rxa5 {[%clk 0:00:23.1]}
42. Rxh7 {[%clk 0:00:17]} 42... Ke4 {[%clk 0:00:22.5]} 43. Rf7 {[%clk
0:00:16.5]} 43... Ra1+ {[%clk 0:00:20.5]} 44. Kd2 {[%clk 0:00:16.2]} 44... Rg1
{[%clk 0:00:21.1]} 45. Rf6 {[%clk 0:00:16]} 45... Kd5 {[%clk 0:00:21.3]} 46. Kd3
{[%clk 0:00:15.1]} 46... Rg3+ {[%clk 0:00:20.8]} 47. Kd2 {[%clk 0:00:14.6]}
47... Rg2+ {[%clk 0:00:21.1]} 48. Kd3 {[%clk 0:00:13.9]} 48... Rg3+ {[%clk
0:00:20.9]} 49. Kd2 {[%clk 0:00:13.9]} 49... Rg2+ {[%clk 0:00:21.3]} 50. Kd1
{[%clk 0:00:14.1]} 50... Rg1+ {[%clk 0:00:21.3]} 51. Ke2 {[%clk 0:00:14]} 51...
Rg2+ {[%clk 0:00:21.6]} 52. Kf3 {[%clk 0:00:14.3]} 52... Rxc2 {[%clk 0:00:20.2]}
53. g6 {[%clk 0:00:14.6]} 53... Rc1 {[%clk 0:00:18]} 54. Kg2 {[%clk 0:00:13.8]}
54... Rc2+ {[%clk 0:00:17.9]} 55. Kh3 {[%clk 0:00:14]} 55... Rc1 {[%clk
0:00:18.3]} 56. Kh2 {[%clk 0:00:12]} 56... Rc2+ {[%clk 0:00:17.8]} 57. Kh3
{[%clk 0:00:12.3]} 57... Rc1 {[%clk 0:00:18.3]} 58. Kh2 {[%clk 0:00:12.5]} 58...
Rc2+ {[%clk 0:00:18.3]} 59. Kh3 {[%clk 0:00:08]} 1/2-1/2

[Event "*** Titled Tuesday Blitz"]
[Site "Chess.com"]
[Date "2021.03.02"]
[Round "11"]
[White "anpospan"]
[Black "lelya96"]
[Result "1-0"]
[WhiteElo "2372"]
[BlackElo "2265"]
[TimeControl "180+1"]
[EndTime "12:10:04 PST"]
[Termination "anpospan won by resignation"]

1. d4 {[%clk 0:03:00.9]} 1... d5 {[%clk 0:02:58.8]} 2. c4 {[%clk 0:03:00.7]}
2... c6 {[%clk 0:02:58.7]} 3. Nf3 {[%clk 0:02:59.9]} 3... Nf6 {[%clk 0:02:58]}
4. e3 {[%clk 0:02:59.8]} 4... Bg4 {[%clk 0:02:55.3]} 5. Be2 {[%clk 0:02:59.5]}
5... e6 {[%clk 0:02:54.4]} 6. Nbd2 {[%clk 0:02:59.2]} 6... Be7 {[%clk
0:02:52.8]} 7. Ne5 {[%clk 0:02:58.4]} 7... Bxe2 {[%clk 0:02:51.5]} 8. Qxe2
{[%clk 0:02:58.4]} 8... O-O {[%clk 0:02:50.2]} 9. O-O {[%clk 0:02:57.8]} 9...
Nbd7 {[%clk 0:02:47.9]} 10. f4 {[%clk 0:02:57.2]} 10... Ne4 {[%clk 0:02:42.7]}
11. Nxe4 {[%clk 0:02:55.3]} 11... dxe4 {[%clk 0:02:42.2]} 12. Bd2 {[%clk
0:02:44.1]} 12... f5 {[%clk 0:02:36.4]} 13. b4 {[%clk 0:02:33.9]} 13... Nxe5
{[%clk 0:02:32.6]} 14. fxe5 {[%clk 0:02:29.3]} 14... Bg5 {[%clk 0:02:30.1]} 15.
g3 {[%clk 0:02:25.3]} 15... Qe7 {[%clk 0:02:25.1]} 16. Bc3 {[%clk 0:02:22.6]}
16... Rad8 {[%clk 0:02:22.1]} 17. Kg2 {[%clk 0:02:21.3]} 17... Bh6 {[%clk
0:02:19.7]} 18. Rad1 {[%clk 0:02:12]} 18... Qg5 {[%clk 0:02:15.6]} 19. Rf4
{[%clk 0:02:04.5]} 19... Qe7 {[%clk 0:02:11.3]} 20. Rh4 {[%clk 0:02:00.9]} 20...
Bg5 {[%clk 0:02:09.8]} 21. Rh3 {[%clk 0:01:58]} 21... h6 {[%clk 0:02:04.4]} 22.
Rf1 {[%clk 0:01:51]} 22... b6 {[%clk 0:01:54.7]} 23. Rh5 {[%clk 0:01:49.1]}
23... g6 {[%clk 0:01:39.9]} 24. Rh3 {[%clk 0:01:48.3]} 24... Kg7 {[%clk
0:01:40]} 25. g4 {[%clk 0:01:43.6]} 25... a6 {[%clk 0:01:27.3]} 26. gxf5 {[%clk
0:01:30.5]} 26... gxf5 {[%clk 0:01:25.6]} 27. Kh1 {[%clk 0:01:27.2]} 27... Qf7
{[%clk 0:01:11.2]} 28. a4 {[%clk 0:01:17.6]} 28... Qg6 {[%clk 0:01:07.9]} 29.
Rg3 {[%clk 0:01:03.7]} 29... Rh8 {[%clk 0:00:19.6]} 30. h4 {[%clk 0:01:02.4]}
30... Kf7 {[%clk 0:00:19.6]} 31. hxg5 {[%clk 0:00:53.3]} 31... hxg5+ {[%clk
0:00:19.9]} 32. Kg1 {[%clk 0:00:49.2]} 32... Rh4 {[%clk 0:00:19.5]} 33. Kf2
{[%clk 0:00:45]} 33... Rdh8 {[%clk 0:00:16.3]} 34. Ke1 {[%clk 0:00:44.9]} 34...
Rh2 {[%clk 0:00:15.5]} 35. Rf2 {[%clk 0:00:44.7]} 35... Rh1+ {[%clk 0:00:15.9]}
36. Kd2 {[%clk 0:00:44.6]} 36... Ke7 {[%clk 0:00:15.9]} 37. Kc2 {[%clk
0:00:43.2]} 37... R8h4 {[%clk 0:00:14.8]} 38. Kb2 {[%clk 0:00:41.3]} 38... Qh6
{[%clk 0:00:13.2]} 39. Rfg2 {[%clk 0:00:41]} 39... g4 {[%clk 0:00:12.2]} 40. d5
{[%clk 0:00:36.3]} 40... exd5 {[%clk 0:00:11.9]} 41. cxd5 {[%clk 0:00:36.4]}
41... b5 {[%clk 0:00:11.7]} 42. d6+ {[%clk 0:00:35.2]} 42... Kd7 {[%clk
0:00:11.6]} 43. axb5 {[%clk 0:00:34.8]} 43... axb5 {[%clk 0:00:11.5]} 44. Qc2
{[%clk 0:00:29.4]} 44... Qe6 {[%clk 0:00:11.4]} 45. Qb3 {[%clk 0:00:27.9]} 45...
R1h2 {[%clk 0:00:10.6]} 46. Qxe6+ {[%clk 0:00:26.9]} 46... Kxe6 {[%clk
0:00:10.8]} 47. Kb3 {[%clk 0:00:25]} 47... Rxg2 {[%clk 0:00:10.7]} 48. Rxg2
{[%clk 0:00:24.8]} 48... Rh3 {[%clk 0:00:11.6]} 49. Rd2 {[%clk 0:00:24.1]} 49...
Rh7 {[%clk 0:00:09.5]} 50. d7 {[%clk 0:00:20.6]} 50... Rxd7 {[%clk 0:00:09.5]}
51. Rxd7 {[%clk 0:00:20.6]} 51... Kxd7 {[%clk 0:00:09.9]} 52. Be1 {[%clk
0:00:21]} 52... Ke6 {[%clk 0:00:09.3]} 53. Bg3 {[%clk 0:00:20.9]} 53... Kd5
{[%clk 0:00:09.7]} 54. Kc3 {[%clk 0:00:21.1]} 54... Ke6 {[%clk 0:00:09.4]} 55.
Kd4 {[%clk 0:00:21.1]} 55... Kd7 {[%clk 0:00:07.9]} 56. Kc5 {[%clk 0:00:21]}
56... Ke6 {[%clk 0:00:08]} 57. Kxc6 {[%clk 0:00:21.1]} 57... f4 {[%clk
0:00:08.3]} 58. Bxf4 {[%clk 0:00:19.9]} 58... Kf5 {[%clk 0:00:07.7]} 59. Kxb5
{[%clk 0:00:19.2]} 1-0

[Event "*** Titled Tuesday Blitz"]
[Site "Chess.com"]
[Date "2021.03.02"]
[Round "11"]
[White "Gerryisplaying"]
[Black "MarcLonoff"]
[Result "0-1"]
[WhiteElo "2218"]
[BlackElo "2138"]
[TimeControl "180+1"]
[EndTime "12:10:04 PST"]
[Termination "MarcLonoff won on time"]

1. d4 {[%clk 0:03:00.9]} 1... e6 {[%clk 0:02:59.3]} 2. e4 {[%clk 0:02:59.4]}
2... d5 {[%clk 0:02:58.3]} 3. Nc3 {[%clk 0:02:58.3]} 3... Bb4 {[%clk 0:02:57.9]}
4. e5 {[%clk 0:02:57.6]} 4... Ne7 {[%clk 0:02:56.8]} 5. a3 {[%clk 0:02:54.5]}
5... Bxc3+ {[%clk 0:02:56.3]} 6. bxc3 {[%clk 0:02:55.4]} 6... c5 {[%clk
0:02:53.4]} 7. Qg4 {[%clk 0:02:55.2]} 7... cxd4 {[%clk 0:02:52.9]} 8. Bd3 {[%clk
0:02:47.9]} 8... Qa5 {[%clk 0:02:47.7]} 9. Ne2 {[%clk 0:02:46.4]} 9... Nbc6
{[%clk 0:02:27.4]} 10. Qxg7 {[%clk 0:02:44.9]} 10... Rg8 {[%clk 0:02:27.4]} 11.
Qf6 {[%clk 0:02:42.9]} 11... Ng6 {[%clk 0:01:45.3]} 12. Bxg6 {[%clk 0:02:41.7]}
12... hxg6 {[%clk 0:01:28.4]} 13. Bg5 {[%clk 0:02:40.7]} 13... dxc3 {[%clk
0:01:27.6]} 14. h4 {[%clk 0:02:00.6]} 14... d4 {[%clk 0:01:23.7]} 15. f4 {[%clk
0:01:28.2]} 15... d3 {[%clk 0:01:03.8]} 16. cxd3 {[%clk 0:01:29.1]} 16... c2+
{[%clk 0:01:02.3]} 17. Kf1 {[%clk 0:01:24]} 17... Qd2 {[%clk 0:00:54.8]} 18. f5
{[%clk 0:01:12.6]} 18... Qxd3 {[%clk 0:00:43.5]} 19. fxg6 {[%clk 0:01:04.4]}
19... Qxg6 {[%clk 0:00:34.3]} 20. Rc1 {[%clk 0:00:54.2]} 20... Qxf6+ {[%clk
0:00:29.2]} 21. Bxf6 {[%clk 0:00:55.1]} 21... Bd7 {[%clk 0:00:26.8]} 22. h5
{[%clk 0:00:53.4]} 22... Ne7 {[%clk 0:00:24.1]} 23. Nf4 {[%clk 0:00:43.6]} 23...
Nf5 {[%clk 0:00:19.9]} 24. Kf2 {[%clk 0:00:35.5]} 24... Bc6 {[%clk 0:00:15.4]}
25. h6 {[%clk 0:00:29.9]} 25... Kd7 {[%clk 0:00:12.7]} 26. h7 {[%clk 0:00:29.4]}
26... Rh8 {[%clk 0:00:11.5]} 27. Bxh8 {[%clk 0:00:27.2]} 27... Rxh8 {[%clk
0:00:11.2]} 28. Rxc2 {[%clk 0:00:28.1]} 28... Kc7 {[%clk 0:00:10.3]} 29. Rh2
{[%clk 0:00:22.1]} 29... Kb6 {[%clk 0:00:09.3]} 30. Rb2+ {[%clk 0:00:21.6]}
30... Ka5 {[%clk 0:00:09.1]} 31. g4 {[%clk 0:00:21.8]} 31... Ne7 {[%clk
0:00:08.2]} 32. Nd3 {[%clk 0:00:20]} 32... Nd5 {[%clk 0:00:05.9]} 33. Nc5 {[%clk
0:00:18.3]} 33... b6 {[%clk 0:00:05.4]} 34. Nd3 {[%clk 0:00:15.8]} 34... Ka6
{[%clk 0:00:05.6]} 35. Rh4 {[%clk 0:00:15.2]} 35... Kb7 {[%clk 0:00:05.5]} 36.
g5 {[%clk 0:00:15.4]} 36... Nc3 {[%clk 0:00:04.7]} 37. Nb4 {[%clk 0:00:12.7]}
37... Ne4+ {[%clk 0:00:04.6]} 38. Ke3 {[%clk 0:00:12.8]} 38... Nxg5 {[%clk
0:00:04.8]} 39. Nxc6 {[%clk 0:00:12.6]} 39... Kxc6 {[%clk 0:00:04.4]} 40. Rc2+
{[%clk 0:00:09.8]} 40... Kd5 {[%clk 0:00:04.2]} 41. Rc7 {[%clk 0:00:05.7]} 41...
Kxe5 {[%clk 0:00:03.7]} 42. Rh5 {[%clk 0:00:04.8]} 42... Kf6 {[%clk 0:00:03.4]}
43. Rxa7 {[%clk 0:00:04.8]} 43... Kg6 {[%clk 0:00:03.2]} 44. Rh4 {[%clk
0:00:03.9]} 44... Nxh7 {[%clk 0:00:02.9]} 45. Rb7 {[%clk 0:00:02.5]} 45... Rc8
{[%clk 0:00:02.3]} 46. Rxb6 {[%clk 0:00:01.4]} 46... Rc3+ {[%clk 0:00:02.1]} 0-1